bitfinex/quotes_SOLUSD_20260302
["timestamp","ask_amount","ask_price","bid_price","bid_amount"]
[1772481101449,0.22991235,87.689,87.653,2.82032237]
[1772481103224,0.22991235,87.689,87.65,4.00519785]
[1772481103225,11.40406897,87.688,87.655,2.82032237]
[1772481105106,11.63950628,87.688,87.655,2.82032237]
[1772481105640,11.63950628,87.688,87.657,2.82032237]
[1772481105806,0.23677911,87.687,87.657,2.82032237]
[1772481106625,11.40406897,87.688,87.657,2.82032237]
[1772481107826,0.28432314,87.691,87.671,2.82032237]
[1772481108527,1e-08,87.7,87.658,39.92790161]
[1772481108528,1e-08,87.7,87.681,2.82032237]
[1772481109816,0.24326047,87.699,87.662,2.82032237]
[1772481110121,0.24326047,87.694,87.662,2.82032237]
[1772481110425,0.28432314,87.693,87.662,2.82032237]
[1772481110936,0.52883556,87.691,87.662,2.82032237]
[1772481111827,0.24574999,87.69,87.662,2.82032237]
[1772481113225,0.24574999,87.69,87.621,1.14127891]
[1772481113226,0.24697335,87.685,87.646,11.40946245]
[1772481113531,0.24818265,87.679,87.645,2.82032237]
[1772481114620,0.24937806,87.677,87.647,2.82032237]
[1772481115814,11.40562981,87.676,87.647,2.82032237]
[1772481116020,11.40562981,87.676,87.649,2.82032237]
[1772481117929,0.25288255,87.676,87.649,2.82032237]
[1772481119542,0.2551523,87.671,87.649,2.82032237]
[1772481119734,0.28432314,87.67,87.649,2.82032237]
[1772481120448,11.40654051,87.669,87.649,2.82032237]
[1772481120830,0.25626766,87.668,87.639,2.82032237]
[1772481122345,0.25626766,87.668,87.64,2.82032237]
[1772481123928,11.69034855,87.673,87.651,2.82032237]
[1772481124851,11.69034855,87.673,87.641,11.41018473]
[1772481124852,0.25953746,87.687,87.661,2.82032237]
[1772481125036,0.26060245,87.695,87.661,2.82032237]
[1772481126251,11.40492776,87.682,87.663,2.82032237]
[1772481126548,11.40510948,87.68,87.663,2.82032237]
[1772481127333,11.40510948,87.68,87.641,28.52527681]
[1772481127334,0.26269588,87.679,87.654,2.82032237]
[1772481127530,0.26269588,87.679,87.649,2.82032237]
[1772481128335,0.28432314,87.676,87.649,2.82032237]
[1772481128634,0.26474149,87.669,87.639,2.82032237]
[1772481129546,0.26474149,87.669,87.639,14.23076749]
[1772481129742,0.26474149,87.669,87.64,2.82032237]
[1772481131152,11.40667062,87.668,87.64,2.82032237]
[1772481131331,0.26674038,87.667,87.64,2.82032237]
[1772481131855,0.26772264,87.659,87.628,2.82032237]
[1772481133146,0.26869362,87.657,87.628,2.82032237]
[1772481134358,11.40823218,87.656,87.628,2.82032237]
[1772481134662,0.27154015,87.655,87.628,2.82032237]
[1772481135637,0.27246728,87.649,87.628,2.82032237]
[1772481136656,0.27338376,87.647,87.612,2.82032237]
[1772481136853,2.92043879,87.619,87.57,4.20116416]
[1772481138258,2.9126834,87.617,87.58,4.00116416]
[1772481138435,11.41317994,87.618,87.571,11.41930547]
[1772481138436,2.9126834,87.609,87.571,11.41930547]
[1772481138934,2.9126834,87.609,87.572,2.72453339]
[1772481139852,2.9126834,87.624,87.581,2.72453339]
[1772481140053,0.28432314,87.623,87.581,2.72453339]
[1772481140446,0.28432314,87.623,87.591,2.72453339]
[1772481142553,0.28432314,87.621,87.593,2.72453339]
[1772481142940,3.19700654,87.621,87.593,2.72453339]
[1772481144434,11.41291942,87.62,87.593,2.72453339]
[1772481144647,3.69383402,87.648,87.591,2.72453339]
[1772481144842,12.74003947,87.697,87.57,0.2]
[1772481144843,2.96101303,87.717,87.65,4.00116416]
[1772481145057,82.79113087,88.001,87.64,4.00116416]
[1772481145058,1.690204,87.714,87.641,5.10909883]
[1772481145235,4.10116416,87.75,87.71,4.00116416]
[1772481145236,2.96101303,87.729,87.71,4.00116416]
[1772481145440,2.96101303,87.729,87.71,1.49985774]
[1772481145951,2.96101303,87.798,87.72,8.00232832]
[1772481146162,7.24341896,87.811,87.772,5.95303676]
[1772481146342,2.96101303,87.81,87.783,0.1]
[1772481146544,2.96101303,87.81,87.776,11.3926358]
[1772481146770,45.52296609,87.868,87.776,11.3926358]
[1772481146771,7.2461591,87.873,87.801,2.72453339]
[1772481147063,10.67715343,87.85,87.811,2.72453339]
[1772481147265,11.38018936,87.872,87.821,2.72453339]
[1772481147475,10.67715343,87.84,87.777,0.28432314]
[1772481147643,56.90094682,87.872,87.777,0.28432314]
[1772481147644,3.69383402,87.862,87.8,10.67715343]
[1772481147843,10.67715343,87.85,87.781,3.00885653]
[1772481148045,7.22565798,87.871,87.773,11.39302518]
[1772481148262,10.67715343,87.79,87.74,10.67715343]
[1772481148461,4.82477569,87.818,87.741,2.72453339]
[1772481148667,45.5478567,87.82,87.741,2.72453339]
[1772481148668,2.9126834,87.78,87.741,2.72453339]
[1772481148841,2.9126834,87.78,87.727,62.35522846]
[1772481148842,10.67715343,87.77,87.742,14.12158383]
[1772481149043,2.9126834,87.777,87.743,2.72453339]
[1772481149568,5.9514113,87.817,87.761,2.72453339]
[1772481149569,10.67715343,87.8,87.761,2.72453339]
[1772481150067,0.28432314,87.789,87.743,2.72453339]
[1772481150367,10.67715343,87.79,87.743,2.72453339]
[1772481150569,10.67715343,87.78,87.745,2.72453339]
[1772481151353,10.67715343,87.78,87.744,11.39679066]
[1772481151354,10.67715343,87.77,87.744,11.39679066]
[1772481152450,10.67715343,87.78,87.747,2.72453339]
[1772481152972,2.9126834,87.791,87.747,2.72453339]
[1772481153158,10.67715343,87.81,87.761,2.72453339]
[1772481153357,2.9126834,87.809,87.761,2.72453339]
[1772481153674,0.28432314,87.808,87.761,2.72453339]
[1772481154012,10.67715343,87.83,87.79,10.67715343]
[1772481154179,10.67715343,87.83,87.791,2.72453339]
[1772481154469,10.67715343,87.83,87.792,11.3905595]
[1772481154672,10.67715343,87.83,87.793,2.72453339]
[1772481156172,10.67715343,87.82,87.793,2.72453339]
[1772481156355,2.75563863,87.829,87.793,2.72453339]
[1772481156558,0.28432314,87.838,87.795,2.72453339]
[1772481156859,10.67715343,87.83,87.795,2.72453339]
[1772481158364,2.9126834,87.829,87.795,2.72453339]
[1772481158855,2.9126834,87.829,87.797,2.72453339]
[1772481159055,10.67715343,87.83,87.797,2.72453339]
[1772481159258,0.28432314,87.837,87.797,2.72453339]
[1772481160673,0.28432314,87.837,87.799,2.72453339]
[1772481160881,10.67715343,87.83,87.799,2.72453339]
[1772481161069,3.19700654,87.829,87.792,11.39047175]
[1772481161272,10.67715343,87.81,87.792,11.39047175]
[1772481161786,10.67715343,87.81,87.778,28.48062381]
[1772481161787,2.9126834,87.794,87.733,2.72453339]
[1772481162081,10.67715343,87.77,87.733,2.72453339]
[1772481162778,10.67715343,87.77,87.735,2.72453339]
[1772481163284,0.28432314,87.779,87.735,2.72453339]
[1772481163584,10.67715343,87.77,87.735,2.72453339]
[1772481163892,10.67715343,87.76,87.735,2.72453339]
[1772481164087,10.67715343,87.77,87.735,2.72453339]
[1772481164960,10.67715343,87.77,87.72,10.67715343]
[1772481164961,10.67715343,87.77,87.737,2.72453339]
[1772481166152,10.67715343,87.77,87.739,2.72453339]
[1772481166873,10.67715343,87.75,87.725,11.39914096]
[1772481167060,2.9126834,87.753,87.725,11.39914096]
[1772481167372,0.28432314,87.759,87.725,14.63244827]
[1772481167579,0.28432314,87.759,87.726,3.23330731]
[1772481167753,3.27721408,87.762,87.726,3.23330731]
[1772481167957,0.28432314,87.769,87.726,3.23330731]
[1772481168152,0.28432314,87.769,87.72,10.67715343]
[1772481168153,3.27721408,87.773,87.728,3.23330731]
[1772481168352,0.14216157,87.778,87.731,3.23330731]
[1772481168778,0.28432314,87.778,87.731,3.23330731]
[1772481170882,14.95209672,87.792,87.741,3.23330731]
[1772481171178,3.56153722,87.788,87.741,3.23330731]
[1772481172175,3.56153722,87.788,87.74,10.67715343]
[1772481172176,3.56153722,87.786,87.743,3.23330731]
[1772481173265,10.67715343,87.78,87.743,3.23330731]
[1772481173468,0.28432314,87.778,87.742,11.39705044]
[1772481173665,3.27721408,87.769,87.742,11.39705044]
[1772481174276,3.27721408,87.763,87.731,11.39847944]
[1772481174663,3.27721408,87.759,87.731,11.39847944]
[1772481176289,3.27721408,87.759,87.727,28.49748188]
[1772481176521,3.27721408,87.757,87.727,28.49748188]
[1772481177182,3.27721408,87.757,87.722,11.39964889]
[1772481177383,3.27721408,87.757,87.723,3.23330731]
[1772481177579,3.27721408,87.757,87.722,39.89877111]
[1772481177882,3.27721408,87.757,87.714,3.23330731]
[1772481177883,3.27721408,87.749,87.706,3.23330731]
[1772481178083,3.27721408,87.743,87.706,3.23330731]
[1772481178267,3.27721408,87.743,87.7,10.87715343]
[1772481178268,3.27721408,87.743,87.708,3.23330731]
[1772481178461,269.8,87.786,87.711,3.23330731]
[1772481178462,3.27721408,87.753,87.711,3.23330731]
[1772481178880,11.39575166,87.752,87.711,3.23330731]
[1772481179267,3.27721408,87.753,87.721,3.23330731]
[1772481179466,3.27721408,87.761,87.721,3.23330731]
[1772481179661,3.27721408,87.761,87.707,39.90559476]
[1772481179662,3.56153722,87.781,87.731,3.23330731]
[1772481179862,3.27721408,87.779,87.731,3.23330731]
[1772481180318,28.47708931,87.79,87.707,176.72477679]
[1772481180319,3.27721408,87.795,87.751,3.23330731]
[1772481180885,10.67715343,87.79,87.751,3.23330731]
[1772481181708,3.27721408,87.789,87.751,3.23330731]
[1772481181888,13.95436751,87.78,87.751,3.23330731]
[1772481182201,3.27721408,87.789,87.751,3.23330731]
[1772481183208,3.27721408,87.812,87.771,3.23330731]
[1772481183406,3.27721408,87.812,87.752,131.05114411]
[1772481183407,3.27721408,87.823,87.781,3.23330731]
[1772481183611,3.27721408,87.832,87.791,3.23330731]
[1772481184091,11.38441612,87.84,87.801,3.23330731]
[1772481184288,3.27721408,87.829,87.781,3.23330731]
[1772481185006,39.845254,87.84,87.756,1.42384636]
[1772481185007,3.27721408,87.809,87.771,3.23330731]
[1772481185206,3.27721408,87.809,87.773,3.23330731]
[1772481185506,3.27721408,87.809,87.78,10.67715343]
[1772481185707,3.27721408,87.824,87.78,3.23330731]
[1772481185909,3.27721408,87.823,87.791,3.23330731]
[1772481186092,3.27721408,87.843,87.801,3.23330731]
[1772481186292,3.27721408,87.843,87.811,3.23330731]
[1772481187191,3.27721408,87.839,87.792,3.23330731]
[1772481187395,3.27721408,87.829,87.784,3.23330731]
[1772481188509,3.27721408,87.839,87.801,3.23330731]
[1772481188720,0.28432314,87.824,87.783,11.39172732]
[1772481188920,0.28432314,87.824,87.784,3.23330731]
[1772481188921,3.27721408,87.823,87.784,3.23330731]
[1772481189214,3.27721408,87.833,87.791,3.23330731]
[1772481189401,3.27721408,87.829,87.793,3.23330731]
[1772481189992,3.27721408,87.823,87.784,3.23330731]
[1772481190612,3.27721408,87.809,87.765,3.23330731]
[1772481191001,3.27721408,87.803,87.765,3.23330731]
[1772481191314,3.27721408,87.799,87.765,3.23330731]
[1772481191610,11.38978108,87.798,87.766,14.62724117]
[1772481192002,3.56153722,87.797,87.766,3.23330731]
[1772481192186,3.56153722,87.797,87.752,3.23330731]
[1772481192609,3.27721408,87.797,87.761,3.23330731]
[1772481192994,3.27721408,87.797,87.751,39.88558534]
[1772481192995,3.56153722,87.796,87.752,3.23330731]
[1772481193809,0.28432314,87.794,87.754,3.23330731]
[1772481194311,3.27721408,87.789,87.741,3.23330731]
[1772481194610,3.27721408,87.789,87.744,4.03854856]
[1772481195406,3.27721408,87.789,87.751,4.03854856]
[1772481195600,3.27721408,87.789,87.759,4.03854856]
[1772481195800,11.3910785,87.788,87.76,11.39471285]
[1772481196001,11.3910785,87.788,87.761,4.03854856]
[1772481197324,39.86877476,87.788,87.761,4.03854856]
[1772481197498,3.84761098,87.787,87.741,3.92303674]
[1772481198317,3.84761098,87.787,87.742,3.92303674]
[1772481198521,3.84761098,87.787,87.751,3.92303674]
[1772481200307,11.39133802,87.786,87.753,3.92303674]
[1772481202317,3.84761098,87.789,87.741,3.92303674]
[1772481202514,3.84761098,87.779,87.741,3.92303674]
[1772481204307,3.84761098,87.777,87.743,3.92303674]
[1772481204717,0.28432314,87.774,87.737,11.39759997]
[1772481204904,3.84761098,87.749,87.707,11.40147677]
[1772481205104,146.09853677,87.778,87.708,3.92303674]
[1772481205105,3.84761098,87.739,87.708,3.92303674]
[1772481205924,3.84761098,87.739,87.698,28.50663602]
[1772481205925,3.84761098,87.739,87.702,3.92303674]
[1772481206227,3.84761098,87.727,87.69,3.92303674]
[1772481206424,3.84761098,87.727,87.692,11.40344206]
[1772481206602,3.84761098,87.727,87.69,3.92303674]
[1772481206807,3.84761098,87.727,87.691,11.40367489]
[1772481207324,3.84761098,87.727,87.69,3.92303674]
[1772481208818,3.84761098,87.725,87.69,3.92303674]
[1772481209525,3.84761098,87.725,87.693,11.4033426]
[1772481209726,3.84761098,87.725,87.69,3.92303674]
[1772481210429,3.84761098,87.725,87.696,11.40292382]
[1772481210817,11.39938899,87.724,87.691,11.40365974]
[1772481211218,3.84761098,87.723,87.69,3.92303674]
[1772481212331,3.84761098,87.723,87.694,11.40325582]
[1772481212833,3.84761098,87.723,87.69,3.92303674]
[1772481213432,3.84761098,87.721,87.69,3.92303674]
[1772481214309,11.3999088,87.72,87.69,3.92303674]
[1772481215432,15.24751978,87.72,87.69,3.92303674]
[1772481215927,20.13958482,87.78,87.711,3.92303674]
[1772481215928,11.39743092,87.74,87.711,3.92303674]
[1772481216523,3.84761098,87.767,87.721,3.92303674]
[1772481216912,3.84761098,87.764,87.731,3.92303674]
[1772481217931,39.88013171,87.763,87.731,3.92303674]
[1772481218232,3.84761098,87.762,87.731,3.92303674]
[1772481218631,39.88013171,87.763,87.721,11.39974769]
[1772481218632,3.84761098,87.759,87.721,11.39974769]
[1772481218837,3.84761098,87.759,87.722,3.92303674]
[1772481220126,3.84761098,87.749,87.716,11.40041555]
[1772481220333,3.84761098,87.749,87.716,15.32345229]
[1772481220817,3.84761098,87.749,87.717,3.92303674]
[1772481221433,11.39627114,87.748,87.719,3.92303674]
[1772481221616,3.84761098,87.747,87.719,3.92303674]
[1772481223036,11.39627114,87.748,87.719,3.92303674]
[1772481223231,28.48763469,87.758,87.721,3.92303674]
[1772481223529,3.84761098,87.763,87.723,3.92303674]
[1772481223530,11.39445318,87.762,87.723,3.92303674]
[1772481223910,10.68780342,87.76,87.723,3.92303674]
[1772481224110,14.5354144,87.76,87.723,3.92303674]
[1772481225214,3.84761098,87.759,87.723,3.92303674]
[1772481226426,11.39497253,87.758,87.725,3.92303674]
[1772481227135,39.88240387,87.758,87.725,3.92303674]
[1772481227435,4.26368907,87.749,87.725,3.92303674]
[1772481229440,39.88694899,87.748,87.725,3.92303674]
[1772481229636,39.88694899,87.748,87.7,10.88780342]
[1772481229637,4.26368907,87.739,87.701,11.40237853]
[1772481229839,10.68780342,87.73,87.701,11.40237853]
[1772481230044,10.68780342,87.73,87.7,0.2]
[1772481230247,14.95149249,87.73,87.7,0.2]
[1772481231737,11.39873929,87.729,87.701,4.16258935]
[1772481232122,39.89558753,87.729,87.701,4.16258935]
[1772481232641,45.57800107,87.762,87.7,0.2]
[1772481232642,10.68780342,87.74,87.703,4.16258935]
[1772481233542,15.94480287,87.744,87.705,4.16258935]
[1772481233751,11.39497253,87.758,87.721,4.11547565]
[1772481234327,4.26368907,87.749,87.706,4.11547565]
[1772481234629,39.88240387,87.758,87.706,4.11547565]
[1772481234630,4.26368907,87.739,87.706,4.11547565]
[1772481235634,4.26368907,87.737,87.707,15.51707415]
[1772481235834,4.26368907,87.737,87.707,4.11547565]
[1772481236142,10.68780342,87.73,87.701,4.11547565]
[1772481236522,4.26368907,87.731,87.701,4.11547565]
[1772481236727,4.26368907,87.729,87.7,0.2]
[1772481237228,4.26368907,87.729,87.7,4.31547565]
[1772481237535,11.39757003,87.738,87.701,4.11547565]
[1772481237735,11.39757003,87.738,87.703,4.11547565]
[1772481237933,4.26368907,87.723,87.7,0.2]
[1772481238142,4.26368907,87.729,87.702,4.11547565]
[1772481239939,15.6625583,87.728,87.702,4.11547565]
[1772481241050,4.26368907,87.727,87.702,4.11547565]
[1772481241349,4.26368907,87.727,87.7,0.2]
[1772481241726,4.26368907,87.727,87.701,4.11547565]
[1772481241929,11.3976666,87.738,87.702,4.11547565]
[1772481242344,4.26368907,87.737,87.702,4.11547565]
[1772481243258,39.89159169,87.738,87.7,0.2]
[1772481243259,4.26368907,87.729,87.7,0.2]
[1772481243549,4.26368907,87.719,87.683,4.11547565]
[1772481243850,4.26368907,87.719,87.663,1.14073212]
[1772481243851,4.26368907,87.709,87.68,11.40498296]
[1772481244146,10.68780342,87.71,87.676,4.11547565]
[1772481244147,4.26368907,87.707,87.676,15.52105405]
[1772481244735,4.26368907,87.707,87.676,4.11547565]
[1772481245151,4.26368907,87.707,87.676,15.5210746]
[1772481245547,4.26368907,87.707,87.672,49.76801446]
[1772481245747,4.26368907,87.703,87.672,61.17409355]
[1772481245955,4.26368907,87.703,87.673,4.11547565]
[1772481246252,15.66592755,87.703,87.675,4.11547565]
[1772481246440,11.40164913,87.707,87.675,4.11547565]
[1772481247036,15.6653382,87.707,87.675,4.11547565]
[1772481247249,4.26368907,87.706,87.675,4.11547565]
[1772481247556,11.4018585,87.705,87.677,4.11547565]
[1772481247940,15.66554757,87.705,87.677,4.11547565]
[1772481248433,15.66554757,87.705,87.678,11.40536964]
[1772481248747,15.66554757,87.705,87.679,4.11547565]
[1772481249133,4.26368907,87.704,87.673,11.40590523]
[1772481249533,4.26368907,87.699,87.668,11.40655124]
[1772481251455,4.26368907,87.697,87.668,11.40655124]
[1772481252155,4.26368907,87.697,87.664,4.11547565]
[1772481252536,4.26368907,87.697,87.665,11.40706097]
[1772481253248,4.26368907,87.695,87.666,4.11547565]
[1772481254860,11.4032887,87.694,87.667,11.40680073]
[1772481255344,11.4032887,87.694,87.667,15.52227638]
[1772481255654,56.99347606,87.73,87.667,15.52227638]
[1772481255655,4.08608941,87.72,87.67,10.68780342]
[1772481255865,0.28432314,87.714,87.681,4.11547565]
[1772481256253,4.08608941,87.714,87.681,4.11547565]
[1772481257142,11.40081857,87.713,87.683,4.11547565]
[1772481258041,4.24146193,87.712,87.683,4.11547565]
[1772481258242,4.24146193,87.71,87.683,4.11547565]
[1772481259352,4.24146193,87.699,87.668,11.40658579]
[1772481260950,4.24146193,87.697,87.668,15.52206144]
[1772481261645,56.99714146,87.724,87.668,15.52206144]
[1772481261646,4.24146193,87.736,87.671,4.11547565]
[1772481261842,4.24146193,87.733,87.684,4.11547565]
[1772481262042,4.24146193,87.729,87.691,4.11547565]
[1772481262961,4.24146193,87.727,87.693,4.11547565]
[1772481265065,11.3991291,87.726,87.695,4.11547565]
[1772481265857,4.24146193,87.725,87.695,4.11547565]
[1772481267271,11.39938899,87.724,87.696,11.40302864]
[1772481267451,15.64085092,87.724,87.696,11.40302864]
[1772481267651,15.64085092,87.724,87.678,4.11547565]
[1772481267652,4.24146193,87.719,87.678,4.11547565]
[1772481269657,4.24146193,87.717,87.68,4.11547565]
[1772481270361,4.24146193,87.717,87.681,4.11547565]
[1772481271865,11.40042865,87.716,87.682,11.40484934]
[1772481272063,4.24146193,87.715,87.683,4.11547565]
[1772481273464,11.40042865,87.716,87.683,4.11547565]
[1772481273861,15.64189058,87.716,87.683,4.11547565]
[1772481274270,4.24146193,87.715,87.685,4.11547565]
[1772481276587,4.24146193,87.715,87.686,11.40432908]
[1772481276881,4.24146193,87.715,87.687,4.11547565]
[1772481277372,4.24146193,87.713,87.687,4.11547565]
[1772481278666,4.24146193,87.711,87.688,11.40406897]
[1772481281056,4.24146193,87.709,87.688,11.40406897]
[1772481281690,11.39223162,87.78,87.701,4.11547565]
[1772481281976,11.39223162,87.78,87.689,1.14039389]
[1772481281977,4.24146193,87.787,87.721,4.11547565]
[1772481282176,39.86883228,87.788,87.714,4.11547565]
[1772481282177,4.24146193,87.759,87.714,4.11547565]
[1772481282758,4.24146193,87.759,87.73,3.99562888]
[1772481282962,4.24146193,87.759,87.731,4.11547565]
[1772481283182,4.24146193,87.759,87.73,3.99562888]
[1772481283183,4.24146193,87.759,87.733,4.11547565]
[1772481283479,4.24146193,87.771,87.741,4.11547565]
[1772481284593,4.24146193,87.769,87.727,11.39889967]
[1772481284968,4.24146193,87.769,87.727,15.51437532]
[1772481285269,4.24146193,87.767,87.729,15.51421494]
[1772481285570,4.24146193,87.767,87.73,4.11547565]
[1772481286462,4.24146193,87.759,87.724,11.39932104]
[1772481287590,10.69028212,87.76,87.724,11.39932104]
[1772481287591,4.18185914,87.757,87.724,11.39932104]
[1772481288980,11.39523223,87.756,87.724,11.39932104]
[1772481289184,4.18185914,87.755,87.724,11.39932104]
[1772481290065,4.18185914,87.753,87.718,11.4001523]
[1772481290463,4.18185914,87.753,87.714,11.40067968]
[1772481290666,4.18185914,87.739,87.701,1.14023785]
[1772481290905,39.88422179,87.754,87.683,4.10295077]
[1772481290906,4.18185914,87.719,87.683,4.10295077]
[1772481292186,10.69028212,87.72,87.683,4.10295077]
[1772481292187,4.18185914,87.717,87.684,11.4045892]
[1772481293081,4.18185914,87.717,87.684,15.50753997]
[1772481294379,4.18185914,87.715,87.684,15.50753997]
[1772481297393,4.18185914,87.709,87.664,4.10295077]
[1772481297584,4.18185914,87.699,87.665,11.40702047]
[1772481298692,10.69028212,87.69,87.66,11.40760232]
[1772481298885,4.18185914,87.689,87.66,11.40760232]
[1772481300099,4.18185914,87.687,87.66,11.40760232]
[1772481300392,4.18185914,87.669,87.65,0.2]
[1772481301593,4.18185914,87.682,87.652,4.10295077]
[1772481302194,4.18185914,87.682,87.654,4.10295077]
[1772481303194,57.0028486,87.715,87.65,0.2]
[1772481303195,10.69028212,87.68,87.65,0.2]
[1772481303401,4.18185914,87.679,87.65,0.2]
[1772481304295,10.69028212,87.68,87.65,0.2]
[1772481304296,4.18185914,87.677,87.65,0.2]
[1772481304816,12.68488653,87.782,87.679,15.58722878]
[1772481305107,25.54355869,87.866,87.66,42.76112848]
[1772481305108,4.5,87.828,87.77,10.69028212]
[1772481305277,4.5,87.832,87.8,10.69028212]
[1772481305699,10.79028212,87.86,87.81,10.69028212]
[1772481305875,10.79028212,87.86,87.811,4.10295077]
[1772481305876,0.1,87.86,87.811,4.10295077]
[1772481306078,10.69028212,87.84,87.797,0.28432314]
[1772481306296,10.69028212,87.82,87.766,0.28432314]
[1772481306603,10.69028212,87.8,87.767,7.49167805]
[1772481306895,10.69028212,87.78,87.737,11.39768394]
[1772481307200,10.69028212,87.77,87.737,11.39768394]
[1772481307577,0.28432314,87.795,87.737,39.8919338]
[1772481307785,0.28432314,87.798,87.737,39.8919338]
[1772481307786,4.18185914,87.779,87.737,39.8919338]
[1772481308592,4.18185914,87.779,87.737,11.39768394]
[1772481309195,4.18185914,87.777,87.737,11.39768394]
[1772481309396,4.18185914,87.777,87.738,4.10295077]
[1772481310299,4.18185914,87.777,87.739,11.39744013]
[1772481310505,4.18185914,87.769,87.738,4.10295077]
[1772481310897,4.18185914,87.759,87.721,11.39972109]
[1772481311107,4.18185914,87.759,87.722,4.10295077]
[1772481312196,4.18185914,87.759,87.695,4.83414988]
[1772481312197,4.18185914,87.749,87.69,4.10295077]
[1772481312393,4.18185914,87.727,87.691,11.40367882]
[1772481313520,4.18185914,87.727,87.69,4.10295077]
[1772481313800,4.18185914,87.699,87.659,11.40778018]
[1772481314809,4.27334785,87.697,87.659,11.40778018]
[1772481316384,4.27334785,87.689,87.655,4.10295077]
[1772481316698,4.27334785,87.689,87.656,11.40823218]
[1772481317103,11.40406897,87.688,87.656,11.40823218]
[1772481317407,39.91424139,87.688,87.655,4.10295077]
[1772481318203,39.91424139,87.688,87.656,11.40823218]
[1772481319483,39.91424139,87.688,87.65,10.91089409]
[1772481319484,4.27334785,87.689,87.65,0.2]
[1772481319706,4.30044218,87.687,87.65,0.2]
[1772481319902,4.30044218,87.679,87.65,0.2]
[1772481320289,0.28432314,87.678,87.65,0.2]
[1772481320603,39.91424139,87.688,87.65,0.2]
[1772481320604,4.58476532,87.687,87.65,0.2]
[1772481320804,10.71089409,87.68,87.65,0.2]
[1772481321008,4.30044218,87.679,87.65,0.2]
[1772481322086,15.70581182,87.678,87.65,0.2]
[1772481322689,15.7043811,87.689,87.652,4.11528613]
[1772481322993,4.30044218,87.688,87.652,4.11528613]
[1772481323702,11.40393892,87.689,87.65,0.2]
[1772481323703,4.30044218,87.679,87.65,0.2]
[1772481324408,4.30044218,87.677,87.65,0.2]
[1772481325601,10.71089409,87.68,87.65,0.2]
[1772481325602,4.30044218,87.675,87.65,0.2]
[1772481327786,11.40589,87.674,87.65,0.2]
[1772481327993,4.30044218,87.673,87.65,0.2]
[1772481328590,4.30044218,87.687,87.651,4.11528613]
[1772481328820,4.30044218,87.687,87.651,15.52416908]
[1772481329101,4.30044218,87.679,87.65,0.2]
[1772481329507,4.30044218,87.669,87.65,0.2]
[1772481330303,4.30044218,87.667,87.65,0.2]
[1772481332412,4.30044218,87.679,87.651,11.40888295]
[1772481332619,4.30044218,87.675,87.65,0.2]
[1772481334493,4.30044218,87.673,87.65,0.2]
[1772481335132,11.40429543,87.687,87.652,4.11528613]
[1772481335622,4.30044218,87.686,87.652,4.11528613]
[1772481335919,7.32326443,87.695,87.652,4.11528613]
[1772481336116,7.32326443,87.695,87.651,39.93109034]
[1772481336117,11.4032887,87.694,87.661,4.11528613]
[1772481336495,15.70373088,87.694,87.663,4.11528613]
[1772481339422,15.70373088,87.694,87.665,4.11528613]
[1772481339423,11.4032887,87.694,87.665,4.11528613]
[1772481340608,4.30044218,87.693,87.659,4.11528613]
[1772481340804,4.30044218,87.693,87.661,4.11528613]
[1772481341696,4.30044218,87.693,87.662,11.40745134]
[1772481341899,11.40354878,87.692,87.663,4.11528613]
[1772481343507,11.40354878,87.692,87.665,4.11528613]
[1772481343706,10.71089409,87.68,87.65,0.2]
[1772481343908,4.30044218,87.669,87.65,0.2]
[1772481344613,4.30044218,87.669,87.637,11.41058624]
[1772481344819,4.30044218,87.669,87.635,4.11528613]
[1772481346114,4.30044218,87.667,87.641,11.41018473]
[1772481348322,4.09772208,87.665,87.641,11.41018473]
[1772481349034,4.09772208,87.659,87.618,32.99612159]
[1772481349227,4.09772208,87.659,87.624,4.46323498]
[1772481350134,4.09772208,87.668,87.641,11.41018473]
[1772481350304,4.09772208,87.668,87.632,4.46323498]
[1772481351319,4.09772208,87.668,87.641,4.46323498]
[1772481351505,4.09772208,87.677,87.642,4.46323498]
[1772481351705,4.09772208,87.677,87.64,0.2]
[1772481351922,4.09772208,87.677,87.64,11.61030003]
[1772481352122,39.91970435,87.676,87.64,11.61030003]
[1772481352322,4.09772208,87.669,87.64,0.2]
[1772481352530,4.09772208,87.659,87.64,0.2]
[1772481352820,4.09772208,87.659,87.626,11.41213794]
[1772481354218,4.09772208,87.657,87.626,11.41213794]
[1772481354819,4.09772208,87.666,87.631,4.46323498]
[1772481356229,11.40706097,87.665,87.632,11.41135658]
[1772481356431,11.40706097,87.665,87.633,4.46323498]
[1772481356652,4.09772208,87.664,87.633,4.46323498]
[1772481358638,4.09772208,87.662,87.635,4.46323498]
[1772481360246,4.09772208,87.66,87.635,4.46323498]
[1772481360617,4.09772208,87.66,87.636,4.46323498]
[1772481360819,4.09772208,87.66,87.628,11.41185231]
[1772481361027,4.09772208,87.649,87.614,4.46323498]
[1772481361429,4.09772208,87.649,87.61,0.2]
[1772481361667,4.09772208,87.649,87.579,1.14182623]
[1772481361668,4.09772208,87.637,87.59,8.66398447]
[1772481361945,4.00074949,87.64,87.56,4.20074949]
[1772481361946,4.09772208,87.599,87.571,4.46323498]